bitfinex/quotes_ETHUSD_20250925
["timestamp","ask_amount","ask_price","bid_price","bid_amount"]
[1758765320857,0.6701,4104.4,4104.2,2.43647264]
[1758765321061,0.6701,4104.4,4104.1,2.4365878]
[1758765321371,0.4406,4104.4,4104.3,2.43641386]
[1758765321754,0.4406,4104.4,4103.9,2.43665847]
[1758765322054,0.6701,4104.3,4104.2,2.43648192]
[1758765323190,0.2295,4104.3,4104.2,2.43648192]
[1758765323682,3.0,4104.5,4104.4,2.4364097]
[1758765324390,3.0,4104.5,4103.7,2.4368253]
[1758765324597,0.1216,4104.4,4104.3,2.43646906]
[1758765324778,3.0,4104.5,4104.4,2.4364097]
[1758765324982,5.2221,4104.6,4104.4,2.4364097]
[1758765324983,0.6701,4104.6,4104.4,2.4364097]
[1758765325183,0.1216,4104.4,4104.1,0.2322]
[1758765325383,3.0,4104.5,4104.3,2.43646906]
[1758765325588,3.0,4104.5,4104.4,2.4364097]
[1758765326097,0.001,4104.7,4104.4,2.4364097]
[1758765326098,0.001,4104.7,4104.5,2.43635034]
[1758765326398,0.001,4104.7,4104.6,2.43629099]
[1758765326899,0.1216,4104.6,4103.9,4.547]
[1758765327084,0.1216,4104.2,4104.0,2.43664717]
[1758765327281,0.1216,4104.2,4104.1,2.4365878]
[1758765328197,0.3511,4104.2,4104.0,2.43664354]
[1758765328371,0.3511,4104.2,4104.1,2.4365878]
[1758765328571,5.2151,4104.5,4104.2,2.436527]
[1758765328779,0.1216,4104.2,4103.9,2.43668223]
[1758765329095,0.1216,4103.9,4103.4,19.4871]
[1758765329268,0.1216,4103.9,4103.7,2.4368253]
[1758765329465,0.1216,4103.9,4103.8,2.43676592]
[1758765329760,0.1216,4103.9,4103.8,2.66896592]
[1758765330878,0.1216,4103.9,4103.8,3.11106592]
[1758765331074,0.1216,4103.9,4103.8,2.66896592]
[1758765331283,0.1216,4103.9,4103.8,2.43676592]
[1758765332018,0.6711,4104.7,4103.8,2.43676592]
[1758765332019,0.1216,4104.0,4103.8,5.24066765]
[1758765332169,0.001,4104.7,4104.6,2.43629099]
[1758765332906,0.6711,4104.7,4104.2,2.43647206]
[1758765333221,0.4416,4104.7,4103.8,4.541]
[1758765333533,0.001,4104.7,4104.3,2.43641732]
[1758765333745,0.6701,4104.6,4104.3,2.43641732]
[1758765333928,3.6701,4104.5,4104.0,2.43660149]
[1758765334134,0.2295,4104.4,4104.1,2.43658318]
[1758765334635,0.2295,4104.4,4104.0,2.436635]
[1758765335324,0.2295,4104.4,4104.0,2.43663014]
[1758765335525,0.792,4104.4,4101.8,0.2342]
[1758765335735,3.0,4103.8,4102.7,0.6743]
[1758765336037,3.0,4103.8,4102.8,0.3072]
[1758765337426,3.0,4103.8,4103.4,2.43695461]
[1758765337640,3.2295,4103.8,4103.3,2.43704886]
[1758765337787,3.2295,4103.8,4103.7,0.002]
[1758765338411,3.6701,4103.8,4103.7,0.002]
[1758765340306,3.2295,4103.8,4103.7,0.002]
[1758765340692,7.534,4103.8,4103.7,2.4388253]
[1758765340897,7.534,4103.8,4103.7,0.002]
[1758765343121,7.7745,4103.8,4103.7,0.002]
[1758765343943,0.73308498,4104.6,4104.5,2.43635034]
[1758765344252,0.73308498,4104.6,4104.5,0.2429]
[1758765344400,0.73308498,4104.6,4104.5,2.67925034]
[1758765344603,0.897,4104.7,4104.6,2.43629099]
[1758765344901,4.532,4104.7,4104.6,2.43629099]
[1758765345101,7.532,4104.7,4104.6,2.43629099]
[1758765345321,0.001,4104.7,4104.6,2.87409099]
[1758765345533,0.1226,4104.7,4104.6,3.11699099]
[1758765345745,0.1226,4104.7,4104.6,2.43629099]
[1758765346050,0.1226,4104.7,4104.6,3.11699099]
[1758765348430,0.1226,4104.7,4104.6,2.67919099]
[1758765349767,0.1226,4104.7,4104.6,2.67919099]
[1758765350470,0.1226,4104.7,4104.6,2.43629099]
[1758765350654,4.6476,4104.7,4104.6,2.43629099]
[1758765350854,7.6476,4104.7,4104.6,2.43629099]
[1758765354588,3.0,4104.6,4102.7,2.43737909]
[1758765354783,4.7665,4104.7,4104.4,2.43640297]
[1758765354991,3.0,4104.6,4104.4,2.43636747]
[1758765355290,3.0,4104.6,4104.3,2.43646513]
[1758765355587,0.001,4104.7,4104.4,2.43637984]
[1758765355793,7.52,4104.5,4104.4,2.43637984]
[1758765356577,15.93063205,4104.5,4104.4,2.43637984]
[1758765356766,7.52,4104.5,4104.4,3.11707984]
[1758765356967,3.0,4104.5,4104.4,3.11707984]
[1758765359280,3.0,4104.5,4104.4,2.43637984]
[1758765360578,3.0,4104.5,4104.4,3.11707984]
[1758765361600,3.0,4104.5,4104.4,3.12774393]
[1758765361794,3.0,4104.5,4104.4,2.67097984]
[1758765362196,3.0,4104.5,4104.4,3.10337984]
[1758765366187,3.0,4104.5,4104.4,7.61337984]
[1758765366597,3.0,4104.5,4104.4,3.10337984]
[1758765366888,3.0,4104.5,4104.4,7.61237984]
[1758765367068,3.0,4104.5,4104.4,22.11237984]
[1758765367277,3.0,4104.5,4104.4,17.60337984]
[1758765367579,3.0,4104.5,4104.4,2.43637984]
[1758765367900,3.0,4104.5,4104.4,2.4364097]
[1758765367901,0.2287,4104.5,4104.4,2.4364097]
[1758765368417,7.508,4104.6,4104.5,2.43633709]
[1758765368781,3.0,4104.6,4104.5,2.43633709]
[1758765368986,7.508,4104.6,4104.5,2.43633709]
[1758765369799,0.001,4104.7,4104.3,2.4364666]
[1758765369990,0.2287,4104.6,4104.2,2.43652843]
[1758765370181,3.0,4104.5,4104.3,2.43646906]
[1758765370383,3.0,4104.5,4104.4,2.4364097]
[1758765371000,3.0,4104.5,4104.3,2.43645289]
[1758765372682,0.001,4104.7,4104.3,0.002]
[1758765372883,3.0,4104.5,4104.3,0.002]
[1758765373087,3.227,4104.5,4104.3,0.002]
[1758765373878,6.1311097,4104.4,4104.3,0.002]
[1758765374291,3.6947,4104.4,4104.3,0.002]
[1758765374489,7.729,4104.4,4104.3,0.002]
[1758765375809,7.501,4104.4,4104.3,0.002]
[1758765376011,3.0,4104.4,4104.3,2.43846906]
[1758765376310,3.0,4104.4,4104.3,2.67506906]
[1758765376680,0.001,4104.6,4104.5,2.43635034]
[1758765376880,4.501,4104.6,4104.5,2.43635034]
[1758765377101,7.501,4104.6,4104.5,2.67295034]
[1758765377305,0.001,4105.0,4104.5,2.67295034]
[1758765377306,0.001,4105.0,4104.5,2.87175034]
[1758765377513,0.001,4105.0,4104.9,2.43611293]
[1758765377721,0.001,4105.2,4105.0,5.43605359]
[1758765377889,0.001,4105.2,4105.1,19.96035419]
[1758765378212,0.001,4105.2,4105.1,25.10699425]
[1758765378613,0.001,4105.2,4105.1,22.10699425]
[1758765379812,0.001,4105.2,4105.1,17.60799425]
[1758765380000,0.001,4105.2,4105.1,22.10599425]
[1758765384033,0.001,4105.2,4105.1,21.42899425]
[1758765384626,0.001,4105.2,4105.1,21.66559425]
[1758765384796,0.001,4105.2,4105.1,22.10099425]
[1758765385393,0.001,4105.2,4105.1,19.665]
[1758765385623,0.001,4105.2,4104.4,0.2366]
[1758765385794,0.1216,4105.1,4105.0,2.43602666]
[1758765387828,0.1216,4105.1,4105.0,3.10802666]
[1758765388030,0.1216,4105.1,4105.0,7.59702666]
[1758765388233,0.001,4105.2,4105.1,2.43599425]
[1758765388403,0.001,4105.2,4105.1,3.10799425]
[1758765389435,0.001,4105.2,4105.1,3.13235419]
[1758765390533,0.001,4105.2,4105.1,17.63235419]
[1758765390735,0.001,4105.2,4105.1,17.60799425]
[1758765390938,0.001,4105.2,4105.1,21.85739425]
[1758765391102,0.001,4105.2,4105.1,22.09399425]
[1758765391301,0.001,4105.2,4105.1,22.09299425]
[1758765392033,0.001,4105.2,4105.1,17.60799425]
[1758765392234,0.001,4105.2,4105.1,22.09299425]
[1758765395523,0.001,4105.2,4105.1,17.37139425]
[1758765395728,0.001,4105.2,4105.1,21.85239425]
[1758765395897,0.001,4105.2,4105.1,22.08899425]
[1758765396608,0.001,4105.2,4105.1,17.60799425]
[1758765396817,0.001,4105.2,4105.1,21.41599425]
[1758765397133,0.001,4105.2,4105.1,22.08799425]
[1758765403759,0.001,4105.6,4105.1,22.08799425]
[1758765403760,0.001,4105.6,4105.5,2.43575691]
[1758765404068,0.001,4105.6,4105.5,6.93311447]
[1758765404222,0.001,4105.6,4105.5,7.59415691]
[1758765404428,0.001,4105.6,4105.5,22.09415691]
[1758765405286,1e-08,4106.1,4106.0,2.4354603]
[1758765405421,0.001,4106.4,4106.3,0.792]
[1758765405723,0.4437,4108.7,4108.6,2.43391909]
[1758765406068,0.6822,4108.7,4108.6,2.43391909]
[1758765408557,0.2385,4108.7,4108.6,2.43391909]
[1758765408765,0.6822,4108.7,4108.6,2.43391909]
[1758765408974,0.4437,4109.0,4108.9,2.43374139]
[1758765409536,0.6822,4109.0,4108.9,2.43374139]
[1758765411789,0.2385,4109.0,4108.9,2.43374139]
[1758765412386,0.001,4109.2,4108.7,4.464]
[1758765412566,0.001,4109.2,4109.1,2.43362293]
[1758765414568,0.001,4109.2,4108.9,6.89570778]
[1758765414569,0.1216,4109.1,4108.9,4.461]
[1758765414783,0.6822,4109.0,4108.2,2.43410039]
[1758765414946,0.6822,4109.0,4108.9,2.43374139]
[1758765415147,0.2385,4109.0,4108.9,2.43374139]
[1758765415691,0.2385,4109.0,4108.7,2.43385042]
[1758765415692,0.6822,4109.0,4108.7,2.43385042]
[1758765415843,0.001,4109.2,4108.7,6.53483347]
[1758765416169,0.001,4109.2,4109.0,2.43362701]
[1758765416568,0.1216,4109.0,4108.9,2.43374139]
[1758765419387,0.1216,4109.0,4108.8,14.5]
[1758765419547,0.1216,4109.0,4108.9,2.4580788]
[1758765419995,0.1216,4109.0,4108.9,2.6951788]
[1758765420157,0.1216,4109.0,4108.9,7.1511788]
[1758765420345,0.1226,4109.2,4109.1,2.43362293]
[1758765420683,0.1226,4109.2,4109.1,6.91295915]
[1758765420885,0.1226,4109.2,4109.1,7.55742293]
[1758765421189,0.001,4109.2,4109.1,7.55742293]
[1758765423063,0.001,4109.2,4109.1,22.05742293]
[1758765423472,0.001,4109.2,4109.1,22.84942293]
[1758765423646,0.001,4109.2,4109.1,18.39442293]
[1758765423851,0.001,4109.2,4109.1,24.87442293]
[1758765424050,0.001,4109.2,4109.1,17.60242293]
[1758765424590,0.001,4109.2,4109.1,19.63042293]
[1758765424744,0.001,4109.2,4109.1,24.08142293]
[1758765424950,0.001,4109.2,4109.1,16.93362293]
[1758765425190,0.001,4109.2,4109.1,6.88462293]
[1758765425498,0.001,4109.2,4109.1,7.55342293]
[1758765426162,0.001,4109.2,4109.1,3.10242293]
[1758765426502,0.001,4109.2,4109.1,6.88262293]
[1758765426714,0.001,4109.2,4109.1,2.43362293]
[1758765426874,0.001,4109.2,4109.1,6.88162293]
[1758765431015,0.6952,4109.2,4107.8,2.028]
[1758765431192,0.6942,4109.1,4107.9,4.444]
[1758765431378,0.6942,4109.1,4108.5,2.43392182]
[1758765431577,0.6942,4109.1,4108.9,2.4337251]
[1758765431781,0.6942,4109.1,4108.9,2.43370379]
[1758765431983,0.6947,4109.0,4108.6,4.444]
[1758765432173,0.4488,4109.0,4108.6,4.444]
[1758765432388,0.2459,4108.9,4108.7,2.43385985]
[1758765432587,0.2459,4108.9,4108.6,4.444]
[1758765432588,0.001,4109.2,4108.6,4.444]
[1758765432802,0.001,4109.2,4108.9,2.43374139]
[1758765433012,0.001,4109.2,4109.1,2.43362293]
[1758765433382,0.001,4109.2,4109.1,2.87002293]
[1758765433702,0.001,4109.2,4109.1,3.11172293]
[1758765433875,0.001,4109.2,4109.1,2.43362293]
[1758765435435,0.001,4109.2,4109.1,6.87462293]
[1758765436149,0.001,4109.2,4109.1,6.87362293]
[1758765436498,0.001,4109.2,4108.7,14.5]
[1758765436499,0.6957,4109.2,4108.7,14.5]
[1758765436704,0.001,4109.2,4108.8,4.464338]
[1758765436904,0.001,4109.2,4109.1,2.43362293]
[1758765437709,0.001,4109.2,4109.1,6.87262293]
[1758765438606,0.2469,4109.2,4109.1,4.439]
[1758765438807,0.2469,4109.2,4106.0,0.002]
[1758765438808,0.6957,4109.2,4108.7,2.43380406]
[1758765439155,0.6957,4109.2,4108.0,2.43425363]
[1758765439156,3.0,4109.0,4108.0,2.43425363]
[1758765439451,0.6947,4108.9,4108.2,2.43414439]
[1758765439747,0.2459,4108.8,4108.1,6.8711696]
[1758765439931,0.2459,4108.8,4108.1,4.437]
[1758765440141,0.4488,4108.7,4108.1,4.437]
[1758765440308,0.2459,4108.6,4108.1,6.87120737]
[1758765440640,0.6947,4108.6,4108.1,6.87120737]
[1758765441015,0.6947,4108.6,4108.1,4.437]
[1758765441220,0.6947,4108.6,4108.1,6.87116398]
[1758765441558,0.6947,4108.6,4108.0,2.43427342]
[1758765441850,0.1216,4108.1,4108.0,6.87027342]
[1758765444117,0.1216,4108.1,4108.0,7.54837342]
[1758765444355,0.001,4109.2,4108.7,2.43385156]
[1758765444728,0.2469,4109.2,4108.8,2.43377303]
[1758765445054,0.1216,4108.8,4108.6,0.02433919]
[1758765445352,0.1216,4108.6,4108.4,6.86702505]
[1758765445554,0.1216,4108.6,4108.5,2.43397833]
[1758765446832,0.8163,4108.6,4107.6,0.2417]
[1758765447033,0.1216,4108.4,4107.9,4.431]
[1758765447243,0.2459,4108.6,4107.9,4.431]
[1758765447244,0.1216,4108.1,4108.0,2.67597458]
[1758765447564,0.1216,4108.1,4108.0,3.11237458]
[1758765447866,2.43362757,4109.1,4108.7,2.43381216]
[1758765447867,0.2459,4109.1,4108.7,2.43381216]
[1758765448024,0.2459,4109.1,4108.6,2.43391124]
[1758765448418,0.6947,4109.0,4108.7,2.43385467]
[1758765448637,0.2459,4109.0,4108.8,2.43375707]
[1758765448837,3.001,4109.2,4108.8,2.43375707]
[1758765449053,0.6947,4109.1,4108.5,2.4339775]
[1758765449273,0.1216,4108.6,4108.5,2.4339775]
[1758765450224,0.001,4109.2,4108.6,2.43391909]
[1758765450426,0.1216,4108.9,4108.7,4.45233859]
[1758765450658,0.001,4109.2,4109.1,2.43362293]
[1758765450859,0.1226,4109.2,4109.1,2.43362293]
[1758765451155,0.8173,4109.2,4109.0,2.43367511]
[1758765451361,0.001,4109.2,4109.1,2.45795915]
[1758765451543,0.001,4109.2,4109.1,3.13605915]
[1758765451743,0.001,4109.2,4109.1,7.53872293]
[1758765457644,0.001,4109.2,4109.1,3.11172293]
[1758765457974,0.001,4109.2,4109.1,7.55805915]
[1758765458272,0.001,4109.2,4109.1,7.53372293]
[1758765460627,0.001,4109.2,4109.1,2.43362293]
[1758765461055,0.001,4109.2,4109.1,6.85262293]
[1758765461223,0.001,4109.2,4109.1,2.43362293]
[1758765463444,0.2385,4109.2,4109.1,2.43362293]
[1758765463682,3.6945,4109.2,4109.1,2.43362293]
[1758765464546,0.6945,4109.2,4109.1,2.43362293]
[1758765465074,0.001,4109.2,4109.1,2.43362293]
[1758765465877,0.001,4109.2,4109.1,3.13032293]
[1758765466876,0.001,4109.2,4109.1,7.54432293]
[1758765467054,0.001,4109.2,4109.1,7.09112293]
[1758765467406,0.001,4109.2,4109.1,2.43362293]
[1758765467550,0.2385,4109.2,4109.1,2.43362293]
[1758765467981,0.6945,4109.2,4109.1,2.43362293]
[1758765468552,0.6945,4109.2,4108.3,4.413]
[1758765468765,0.6945,4109.2,4108.4,0.02434037]
[1758765468978,0.6945,4109.2,4108.9,2.43368842]
[1758765469290,0.6935,4109.1,4108.4,0.02434037]
[1758765470264,0.2375,4109.1,4109.0,2.43368216]
[1758765470471,0.001,4109.2,4109.1,2.43362293]
[1758765471268,0.2385,4109.2,4109.1,2.43362293]
[1758765472587,0.1216,4109.1,4109.0,2.43368216]
[1758765473172,0.1216,4109.1,4108.6,2.43391909]
[1758765473375,0.6935,4109.0,4108.9,2.43374139]
[1758765473883,0.6935,4109.0,4108.7,2.43385985]
[1758765474073,0.6935,4108.9,4108.8,2.43380059]
[1758765474275,0.2375,4108.9,4108.8,2.43380059]
[1758765475094,0.2375,4108.9,4108.6,2.43386209]
[1758765475095,0.1216,4108.8,4108.6,2.43386209]
[1758765475296,0.457,4109.2,4108.6,2.43386209]
[1758765475494,0.2375,4108.8,4108.6,2.43386209]
[1758765476089,0.2375,4108.8,4108.7,2.43385985]
[1758765476279,0.2375,4108.8,4108.6,2.43390881]
[1758765476615,0.2375,4108.8,4108.7,2.43385985]
[1758765477105,0.8151,4108.7,4108.4,2.43403387]
[1758765477315,0.2375,4108.6,4108.4,2.43403387]
[1758765477499,0.1216,4108.4,4108.2,2.43415337]
[1758765477676,0.6935,4108.3,4108.1,2.43416346]
[1758765477883,3.0,4108.5,4108.2,2.43410706]
[1758765478613,3.0,4108.5,4107.8,0.2435]
[1758765478776,0.001,4109.2,4107.8,0.2435]
[1758765478980,4.404,4109.0,4108.0,2.43427458]
[1758765479186,3.0,4108.9,4108.6,2.4339172]
[1758765479384,4.404,4108.9,4108.8,2.43379476]
[1758765479583,4.404,4109.0,4108.8,2.43379476]
[1758765480018,4.404,4109.0,4107.9,0.2435]
[1758765480216,4.404,4109.0,4107.7,0.6967]
[1758765480217,3.6935,4108.9,4107.7,0.6967]
[1758765480617,3.6935,4108.9,4107.8,0.2435]
[1758765480923,0.2375,4108.8,4108.3,2.43408898]
[1758765481220,0.6737,4108.7,4108.3,2.43409391]
[1758765481389,0.2335,4108.6,4108.3,2.43409391]
[1758765481587,0.6737,4108.6,4107.4,0.231]
[1758765481927,5.028,4108.5,4107.7,2.43443551]
[1758765482081,3.0,4108.3,4107.8,2.4343789]
[1758765482486,0.2335,4108.2,4107.8,2.4343789]
[1758765482847,0.4402,4108.2,4107.4,2.43462415]
[1758765483126,0.2335,4108.1,4107.5,2.43456667]
[1758765483328,0.2335,4108.1,4107.6,2.4344741]
[1758765483535,0.2335,4108.1,4107.0,0.231]
[1758765483536,0.2335,4108.1,4107.7,2.43444773]
[1758765483884,0.2335,4108.1,4107.6,2.43449923]
[1758765484431,0.2335,4108.1,4107.8,2.43437477]
[1758765484626,0.4402,4108.2,4107.3,0.231]
[1758765484832,0.2335,4108.9,4107.4,0.2553463]
[1758765485003,3.517,4108.8,4108.5,2.43396388]
[1758765485207,3.0,4108.7,4108.5,2.43396388]
[1758765485613,2.028,4108.9,4108.1,0.231]
[1758765485810,3.0,4108.7,4108.2,0.69154156]
[1758765486010,3.0,4108.7,4108.3,0.6672]
[1758765486215,3.0,4108.7,4108.5,2.43397833]
[1758765486416,2.029,4109.2,4108.6,0.6672]
[1758765486622,0.001,4109.2,4108.7,0.69153859]
[1758765486820,0.001,4109.2,4108.9,2.43374139]
[1758765487022,0.001,4109.2,4109.0,2.43368216]
[1758765487232,0.001,4109.2,4109.1,2.45795915]
[1758765487435,0.001,4109.2,4109.1,3.12515915]
[1758765488864,0.001,4109.2,4108.7,14.731]
[1758765489163,0.1216,4109.0,4108.9,2.43374139]
[1758765489467,0.1216,4109.0,4108.9,3.10094139]
[1758765489867,0.1216,4109.0,4108.9,2.66474139]
[1758765490163,0.1216,4109.0,4108.6,0.6672]
[1758765490441,0.2335,4109.0,4108.8,2.43379915]
[1758765490843,0.001,4109.2,4106.8,1.0255]
[1758765490844,3.1216,4108.8,4107.8,4.626]
[1758765491048,0.1216,4108.4,4108.3,2.43409682]
[1758765491549,0.1216,4108.4,4108.3,3.10129682]
[1758765491854,0.1216,4108.4,4108.3,2.43409682]
[1758765492346,0.1216,4108.4,4108.3,3.14479682]
[1758765493324,3.0,4109.0,4108.9,2.43374139]
[1758765494670,3.0,4109.0,4108.4,2.43398788]
[1758765494671,0.001,4109.2,4108.1,2.43418181]
[1758765494960,0.001,4109.2,4109.1,2.43362293]
[1758765495330,0.001,4109.2,4109.1,2.67582293]
[1758765495866,0.1226,4109.2,4109.1,3.14432293]
[1758765496657,0.001,4109.2,4109.1,3.14432293]
[1758765496861,0.001,4109.2,4109.1,7.53432293]
[1758765500873,0.001,4109.2,4109.1,3.14432293]
[1758765501076,0.001,4109.2,4109.1,7.55565915]
[1758765501242,0.001,4109.2,4109.1,7.53032293]
[1758765502488,0.001,4109.2,4109.1,7.52932293]
[1758765505499,0.001,4109.2,4109.1,7.52632293]
[1758765507494,0.001,4109.2,4109.1,7.52532293]
[1758765507997,0.001,4109.2,4109.1,6.81362293]
[1758765510271,0.001,4109.2,4109.1,7.05582293]
[1758765510794,0.001,4109.2,4109.1,7.52432293]
[1758765511268,0.001,4109.2,4109.1,6.81362293]
[1758765513167,0.001,4109.2,4109.1,7.05582293]
[1758765513577,0.001,4109.2,4109.1,7.52432293]
[1758765513805,0.001,4109.2,4109.1,6.81362293]
[1758765514132,0.001,4109.9,4109.4,2.43343724]
[1758765514286,0.001,4109.9,4109.8,2.43320842]
[1758765514472,0.001,4109.9,4109.8,6.8325405]
[1758765514676,0.001,4109.9,4109.8,7.64050842]
[1758765516784,0.001,4109.9,4109.8,7.17200842]
[1758765517104,0.001,4109.9,4109.8,7.64050842]
[1758765518874,0.001,4109.9,4109.8,2.79700842]
[1758765519081,0.001,4109.9,4109.8,7.16900842]
[1758765519398,0.001,4109.9,4109.8,7.63750842]
[1758765519988,0.001,4109.9,4109.8,7.63650842]
[1758765521086,0.001,4109.9,4109.8,2.55480842]
[1758765521410,0.001,4109.9,4109.8,7.16600842]
[1758765521658,0.001,4109.9,4109.8,2.43320842]
[1758765521789,0.001,4109.9,4109.8,6.80120842]
[1758765523514,0.001,4109.9,4109.8,7.03240842]
[1758765523689,0.001,4109.9,4109.8,7.46920842]
[1758765525811,0.001,4109.9,4109.8,2.43320842]
[1758765526108,0.2306,4109.9,4109.8,6.80020842]
[1758765526311,0.2306,4109.9,4109.8,2.43320842]
[1758765526477,0.6819,4109.9,4109.8,6.79820842]
[1758765527680,0.2306,4109.9,4109.8,6.79820842]
[1758765528080,0.001,4109.9,4109.8,6.79820842]
[1758765529219,0.6819,4109.9,4109.8,2.43320842]
[1758765530611,0.6819,4109.9,4107.4,9.7873]
[1758765530612,0.6819,4109.9,4107.4,3.4513]
[1758765530796,0.001,4109.9,4109.8,2.43320842]
[1758765531402,0.6819,4109.9,4109.8,2.43320842]
[1758765531796,0.6819,4109.9,4109.4,6.79442154]
[1758765532001,0.6809,4109.8,4109.6,2.43328225]
[1758765532213,0.001,4109.9,4109.6,2.43328225]
[1758765532413,0.6809,4109.7,4109.6,2.43328225]
[1758765533014,0.1216,4109.6,4109.5,2.43338605]
[1758765533204,0.8025,4109.6,4109.5,2.43338605]
[1758765533399,0.1216,4109.6,4109.5,2.43338605]
[1758765535196,0.1216,4109.6,4109.5,6.81571991]
[1758765535466,0.1216,4109.6,4109.5,7.45938605]
[1758765535633,0.1216,4109.6,4109.5,7.02258605]
[1758765535799,0.1216,4109.6,4109.5,6.79138605]
[1758765540124,0.1216,4109.6,4109.5,2.43338605]
[1758765540359,0.1216,4109.6,4109.5,6.78738605]
[1758765542364,0.1216,4109.6,4109.5,7.02428605]
[1758765543149,0.1216,4109.6,4109.5,6.78738605]
[1758765544240,0.1216,4109.6,4109.2,0.002]
[1758765544547,10.37155746,4109.4,4109.3,6.78450448]
[1758765545948,10.37155746,4109.4,4109.3,2.43350448]
[1758765546152,11.06275746,4109.4,4109.3,6.78350448]
[1758765546518,3.1216,4109.4,4109.3,6.78350448]
[1758765546753,0.001,4109.9,4109.4,2.43344527]
[1758765546949,0.001,4109.9,4109.8,2.43320842]
[1758765547178,0.001,4109.9,4109.8,6.8065405]
[1758765547375,0.001,4109.9,4109.8,6.78220842]
[1758765547885,0.001,4109.9,4109.8,7.48300842]
[1758765549486,0.001,4109.9,4109.8,6.78220842]
[1758765549981,0.001,4109.9,4109.8,6.78120842]
[1758765550286,0.2494,4109.9,4109.8,6.78020842]
[1758765550886,0.2494,4109.9,4109.2,0.4659]
[1758765550887,0.6922,4109.9,4109.2,0.002]
[1758765551188,0.1216,4109.4,4109.3,6.78050448]
[1758765552803,0.1216,4109.4,4109.3,6.77950448]
[1758765553461,0.1216,4109.4,4109.3,2.43350448]
[1758765553666,0.1216,4109.4,4109.3,6.77850448]
[1758765553870,0.1216,4109.4,4109.3,2.43350448]
[1758765554050,0.1216,4109.4,4109.3,6.77850448]
[1758765554456,0.1216,4109.4,4109.3,2.43350448]
[1758765554892,0.1216,4109.4,4109.3,6.77750448]
[1758765556361,0.1216,4109.4,4109.3,6.77650448]
[1758765556787,0.1216,4109.4,4109.3,7.44260448]
[1758765558096,0.1216,4109.4,4109.3,6.77650448]
[1758765558264,0.1216,4109.4,4109.3,2.43350448]
[1758765558599,0.1216,4109.4,4109.3,6.77550448]
[1758765562563,0.1216,4109.4,4109.3,6.77250448]
[1758765562764,0.8226,4109.4,4109.2,2.43551477]
[1758765562975,0.3483,4109.4,4109.3,2.43350448]
[1758765563205,0.1216,4109.4,4109.3,2.43350448]
[1758765563520,0.001,4109.9,4109.8,2.43320842]
[1758765563806,0.001,4109.9,4109.8,3.09930842]
[1758765564369,0.001,4109.9,4109.8,2.66340842]
[1758765564907,0.001,4109.9,4109.8,2.43320842]
[1758765565271,0.001,4109.9,4109.8,2.66340842]
[1758765565551,0.001,4109.9,4109.8,7.00140842]
[1758765565695,0.001,4109.9,4109.8,6.77120842]
[1758765566020,0.001,4109.9,4109.8,7.00140842]
[1758765566186,0.001,4109.9,4109.8,7.43730842]
[1758765566673,0.001,4109.9,4109.8,7.00140842]
[1758765566868,0.001,4109.9,4109.8,6.77120842]
[1758765571110,0.001,4109.9,4109.8,7.00140842]
[1758765571479,0.001,4109.9,4109.8,7.43730842]
[1758765572816,0.001,4109.9,4109.8,7.00140842]
[1758765573114,0.001,4109.9,4109.8,7.43730842]
[1758765573415,0.001,4109.9,4109.8,6.77120842]
[1758765576699,0.001,4109.9,4109.8,2.43320842]
[1758765576906,0.001,4109.9,4109.3,2.43347174]
[1758765576907,0.1216,4109.8,4109.1,0.7877]
[1758765577105,3.1216,4109.6,4109.5,2.43338605]
[1758765577421,3.1216,4109.6,4109.5,6.76238605]
[1758765578215,0.1216,4109.6,4109.5,7.42848605]
[1758765578521,0.1216,4109.6,4109.5,6.76238605]
[1758765579119,0.1216,4109.6,4109.5,7.42848605]
[1758765579620,0.1216,4109.6,4109.5,6.76238605]
[1758765579808,0.1216,4109.6,4109.5,7.42848605]
[1758765579996,0.1216,4109.6,4109.5,7.42648605]
[1758765581315,0.1216,4109.6,4109.5,6.99058605]
[1758765583245,0.1216,4109.6,4109.5,2.43338605]
[1758765583525,0.1216,4109.6,4109.5,6.75838605]
[1758765583683,0.1216,4109.6,4109.5,2.43338605]
[1758765583889,0.8018,4109.6,4109.2,2.43553374]
[1758765584132,11.38751249,4109.3,4109.2,2.43553374]
[1758765584341,12.06771249,4109.3,4109.2,2.43553374]
[1758765584695,12.06771249,4109.3,4109.2,0.002]
[1758765586437,16.39071249,4109.3,4109.2,2.43556371]
[1758765586797,15.94761249,4109.3,4109.2,2.43556371]
[1758765589021,3.0,4109.3,4109.2,3.13936371]
[1758765589751,0.1216,4109.4,4109.2,3.13936371]
[1758765590040,0.1216,4109.4,4109.3,7.45830448]
[1758765590647,0.001,4109.9,4109.8,2.43320842]
[1758765590952,0.1226,4109.9,4109.8,2.43320842]
[1758765591153,0.1226,4109.9,4109.8,3.13700842]
[1758765591446,0.1226,4109.9,4109.8,3.1613405]
[1758765593351,0.001,4109.9,4109.8,7.45600842]
[1758765594151,0.001,4109.9,4109.8,6.75220842]
[1758765594347,0.001,4109.9,4109.8,2.43320842]
[1758765594348,3.1226,4109.9,4109.8,2.43320842]
[1758765595518,3.8028,4109.9,4109.8,2.43320842]
[1758765596151,3.3597,4109.9,4109.8,2.43320842]
[1758765596324,3.1226,4109.9,4109.8,2.43320842]
[1758765597556,0.1226,4109.9,4109.8,3.13700842]
[1758765598354,0.001,4109.9,4109.8,3.13700842]
[1758765598664,0.001,4109.9,4109.8,3.25860842]
[1758765599451,0.001,4109.9,4109.8,17.75860842]
[1758765601623,0.001,4109.9,4109.8,3.25860842]
[1758765602077,0.001,4109.9,4109.8,2.55480842]
[1758765602759,0.001,4109.9,4109.8,7.53660842]